bitfinex/quotes_BTCUSD_20251212
["timestamp","ask_amount","ask_price","bid_price","bid_amount"]
[1765536382225,0.75712972,92491.0,92490.0,0.00127532]
[1765536382763,1.15833734,92491.0,92490.0,0.00127532]
[1765536382902,1.16844332,92491.0,92490.0,0.00127532]
[1765536383103,1.19761035,92491.0,92490.0,0.00127532]
[1765536383329,1.16844332,92491.0,92490.0,0.00127532]
[1765536392582,1.16843068,92491.0,92490.0,0.00127532]
[1765536399160,1.05792306,92491.0,92490.0,0.00127532]
[1765536406897,1.05792521,92491.0,92490.0,0.00127532]
[1765536407050,1.08700071,92491.0,92490.0,0.00127532]
[1765536407264,1.12527571,92491.0,92490.0,0.00127532]
[1765536407464,1.09620021,92491.0,92490.0,0.00127532]
[1765536411747,0.63929221,92491.0,92490.0,0.00127532]
[1765536412090,0.91960221,92491.0,92490.0,0.00127532]
[1765536412274,1.18421422,92491.0,92490.0,0.00127532]
[1765536412480,1.23910821,92491.0,92490.0,0.00127532]
[1765536413587,1.23912019,92491.0,92490.0,0.00127532]
[1765536416305,0.93000419,92491.0,92490.0,0.00127532]
[1765536418106,1.24636619,92491.0,92490.0,0.00127532]
[1765536420182,1.04837319,92491.0,92490.0,0.00127532]
[1765536420576,1.15888081,92491.0,92490.0,0.00127532]
[1765536422803,1.04837319,92491.0,92490.0,0.00127532]
[1765536423319,1.07744869,92491.0,92490.0,0.00127532]
[1765536431119,1.05416102,92491.0,92490.0,0.00127532]
[1765536432616,1.05416114,92491.0,92490.0,0.00127532]
[1765536433376,1.02508564,92491.0,92490.0,0.00127532]
[1765536433573,1.13559326,92491.0,92490.0,0.00127532]
[1765536435464,1.02508564,92491.0,92490.0,0.00127532]
[1765536437831,1.05420144,92491.0,92490.0,0.00127532]
[1765536439814,1.04381144,92491.0,92490.0,0.00127532]
[1765536440177,1.05420144,92491.0,92490.0,0.00127532]
[1765536440379,0.93583244,92491.0,92490.0,0.00127532]
[1765536440619,1.04358844,92491.0,92490.0,0.00127532]
[1765536444384,0.96996865,92491.0,92490.0,0.00127532]
[1765536444582,1.01447264,92491.0,92490.0,0.00127532]
[1765536444803,0.82439265,92491.0,92490.0,0.00127532]
[1765536444997,0.84143265,92491.0,92490.0,0.00127532]
[1765536445403,0.88593664,92491.0,92490.0,0.00127532]
[1765536448228,0.84143265,92491.0,92490.0,0.00127532]
[1765536450069,0.47356667,92491.0,92490.0,0.04215532]
[1765536450271,0.24260667,92491.0,92490.0,0.04955221]
[1765536450471,0.24260667,92491.0,92490.0,0.04295365]
[1765536450843,0.24060667,92491.0,92490.0,0.04295365]
[1765536451029,0.24060667,92491.0,92490.0,0.04195365]
[1765536451030,0.23760667,92491.0,92490.0,0.04195365]
[1765536451253,0.24060667,92491.0,92490.0,0.04295365]
[1765536451661,0.23860667,92491.0,92490.0,0.04195365]
[1765536452104,0.24060667,92491.0,92490.0,0.04295365]
[1765536452335,0.23960667,92491.0,92490.0,0.04295365]
[1765536454249,0.23527725,92491.0,92490.0,0.04295365]
[1765536454687,0.002,92491.0,92490.0,0.28081372]
[1765536454931,0.01904,92491.0,92490.0,0.30232122]
[1765536455129,0.01704,92491.0,92490.0,0.30132122]
[1765536455333,0.01704,92491.0,92490.0,0.06357413]
[1765536455537,0.01804,92491.0,92490.0,0.04495365]
[1765536455762,0.23427725,92491.0,92490.0,0.04895365]
[1765536456178,0.01804,92491.0,92490.0,0.04495365]
[1765536456384,0.23527725,92491.0,92490.0,0.05195365]
[1765536456794,0.01804,92491.0,92490.0,0.04495365]
[1765536457013,0.01804,92491.0,92490.0,0.04795365]
[1765536457014,0.23427725,92491.0,92490.0,0.04795365]
[1765536457433,0.23527725,92491.0,92490.0,0.05395365]
[1765536457821,0.23427725,92491.0,92490.0,0.04795365]
[1765536458225,0.23527725,92491.0,92490.0,0.05295365]
[1765536458640,0.23427725,92491.0,92490.0,0.04695365]
[1765536459053,0.23527725,92491.0,92490.0,0.05295365]
[1765536474537,0.23527725,92491.0,92490.0,0.01207365]
[1765536478935,0.23527725,92491.0,92490.0,0.05295365]
[1765536491724,0.23527725,92491.0,92490.0,0.02867365]
[1765536491928,0.23527725,92491.0,92490.0,0.05334365]
[1765536493110,0.32799918,92491.0,92490.0,0.02867365]
[1765536493312,0.32799918,92491.0,92490.0,0.01207365]
[1765536494956,0.23527725,92491.0,92490.0,0.01207365]
[1765536496163,0.23527725,92491.0,92490.0,0.05233365]
[1765536497359,0.23527725,92491.0,92490.0,0.0508531]
[1765536509029,0.01904,92491.0,92490.0,0.26709269]
[1765536515516,0.01904,92491.0,92490.0,0.30600848]
[1765536516151,1.69399152,92490.0,92489.0,0.08242562]
[1765536516557,1.69399152,92490.0,92489.0,0.27118957]
[1765536517792,1.69399152,92490.0,92489.0,0.28118957]
[1765536517793,1.69599152,92490.0,92489.0,0.28118957]
[1765536518257,1.69599152,92490.0,92489.0,0.30510957]
[1765536520211,1.69599152,92490.0,92489.0,0.34823755]
[1765536522055,1.69599152,92490.0,92489.0,0.30510957]
[1765536522252,1.69599152,92490.0,92489.0,0.27806193]
[1765536528320,1.69599152,92490.0,92489.0,0.32118991]
[1765536535355,1.69599152,92490.0,92489.0,0.61188991]
[1765536535571,1.69599152,92490.0,92489.0,0.64434449]
[1765536535783,1.69599152,92490.0,92489.0,0.66596497]
[1765536536213,1.67642085,92490.0,92489.0,0.65596497]
[1765536536751,1.67842085,92490.0,92489.0,0.66396497]
[1765536537078,1.67742085,92490.0,92489.0,0.66196497]
[1765536537444,1.67742085,92490.0,92489.0,0.65796497]
[1765536537785,1.67842085,92490.0,92489.0,0.66496497]
[1765536538604,1.67842085,92490.0,92489.0,0.71498336]
[1765536539009,1.04570697,92490.0,92489.0,1.77099379]
[1765536539234,0.946325,92490.0,92489.0,1.77095196]
[1765536539852,0.945325,92490.0,92489.0,1.76895196]
[1765536540011,0.945325,92490.0,92489.0,1.76995196]
[1765536540230,0.946325,92490.0,92489.0,1.77695196]
[1765536541160,0.946325,92490.0,92489.0,0.85086288]
[1765536541367,0.946325,92490.0,92489.0,0.86790288]
[1765536542046,0.946325,92490.0,92489.0,1.71640288]
[1765536542350,0.94660663,92490.0,92489.0,1.71640288]
[1765536542541,0.94660663,92490.0,92489.0,1.63230288]
[1765536543226,0.94660663,92490.0,92489.0,1.71640288]
[1765536546050,0.94660663,92490.0,92489.0,0.71640288]
[1765536546255,0.94660663,92490.0,92489.0,1.49200288]
[1765536547043,0.94660663,92490.0,92489.0,0.71640288]
[1765536547246,0.94660663,92490.0,92489.0,1.71640288]
[1765536549166,0.92903777,92490.0,92489.0,1.71640288]
[1765536549411,0.92903777,92490.0,92489.0,1.49430288]
[1765536550177,0.92903777,92490.0,92489.0,1.71640288]
[1765536551551,0.92737712,92490.0,92489.0,1.71640288]
[1765536551753,0.43176275,92490.0,92489.0,1.83030288]
[1765536551955,0.26018065,92490.0,92489.0,1.83030288]
[1765536556275,0.26018065,92490.0,92489.0,0.83030288]
[1765536556476,0.26018065,92490.0,92489.0,1.83030288]
[1765536559458,1e-08,92490.0,92489.0,1.83030288]
[1765536560061,1e-08,92490.0,92489.0,1.84125259]
[1765536560239,1e-08,92490.0,92489.0,1.98719794]
[1765536561304,1e-08,92490.0,92489.0,1.90970674]
[1765536563177,0.01080672,92535.0,92531.0,0.22694916]
[1765536563419,0.01080672,92535.0,92530.0,0.04312798]
[1765536563420,0.22855541,92535.0,92534.0,0.04553764]
[1765536563983,0.22855541,92535.0,92534.0,0.07026764]
[1765536564980,0.22955541,92535.0,92534.0,0.07026764]
[1765536565189,0.00161287,92535.0,92534.0,0.07026764]
[1765536565744,0.00261287,92535.0,92534.0,0.07026764]
[1765536566102,0.00261287,92535.0,92534.0,0.28640441]
[1765536566472,0.00261287,92535.0,92534.0,0.07026764]
[1765536566682,0.001,92535.0,92534.0,0.28640441]
[1765536566807,0.001,92535.0,92534.0,0.32953239]
[1765536567776,0.01080602,92541.0,92537.0,0.01080648]
[1765536567981,0.22692644,92541.0,92540.0,0.02488]
[1765536568183,0.22692171,92543.0,92540.0,0.02488]
[1765536568393,0.21612011,92542.0,92541.0,0.02473]
[1765536568727,0.21612011,92542.0,92541.0,0.04017]
[1765536568929,0.21761571,92542.0,92541.0,0.04017]
[1765536569820,0.21861571,92542.0,92541.0,0.04017]
[1765536570019,0.0024956,92542.0,92541.0,0.25629042]
[1765536570224,0.0024956,92542.0,92541.0,0.2994184]
[1765536570446,0.0024956,92542.0,92541.0,0.3004184]
[1765536571248,0.0024956,92542.0,92541.0,0.2994184]
[1765536571605,0.0014956,92542.0,92541.0,0.3014184]
[1765536572079,0.0014956,92542.0,92541.0,0.08529798]
[1765536573175,0.0014956,92542.0,92541.0,0.04217]
[1765536574238,0.0014956,92542.0,92541.0,0.25829042]
[1765536575569,0.0014956,92542.0,92541.0,0.3014184]
[1765536576009,0.0014956,92542.0,92541.0,0.25829042]
[1765536576254,0.0014956,92542.0,92541.0,0.3014184]
[1765536579977,0.0014956,92542.0,92541.0,0.25829042]
[1765536580174,0.0014956,92542.0,92541.0,0.29073111]
[1765536580970,0.0014956,92542.0,92541.0,0.68274648]
[1765536581184,0.0014956,92542.0,92541.0,0.62455909]
[1765536582250,0.0014956,92542.0,92541.0,0.62255909]
[1765536582656,0.0024956,92542.0,92541.0,0.67657748]
[1765536583394,0.0024956,92542.0,92541.0,0.67957748]
[1765536583816,0.0024956,92542.0,92541.0,1.67957748]
[1765536584020,0.00045612,92542.0,92541.0,1.67957748]
[1765536588851,0.00045612,92542.0,92541.0,0.67957748]
[1765536589051,0.00045612,92542.0,92541.0,1.67957748]
[1765536592948,0.00045612,92542.0,92541.0,0.67957748]
[1765536593154,0.00045612,92542.0,92541.0,1.67957748]
[1765536593981,0.00045612,92542.0,92541.0,0.67957748]
[1765536594189,0.00045612,92542.0,92541.0,1.67957748]
[1765536599509,0.01080205,92575.0,92573.0,0.21604455]
[1765536599655,0.01080205,92575.0,92574.0,0.08838798]
[1765536599656,0.00200172,92575.0,92574.0,0.08838798]
[1765536600059,0.00295024,92575.0,92574.0,0.08838798]
[1765536600477,0.21899128,92575.0,92574.0,0.08838798]
[1765536601200,0.21899128,92575.0,92564.0,0.02378]
[1765536601201,0.22686041,92568.0,92564.0,0.02378]
[1765536601381,0.21606205,92566.0,92560.0,0.02992]
[1765536601637,0.21836482,92566.0,92560.0,0.00614]
[1765536601846,0.21836482,92566.0,92561.0,0.02378]
[1765536602593,0.21836482,92566.0,92565.0,0.05098]
[1765536602797,0.22036482,92566.0,92565.0,0.05098]
[1765536603045,0.22236482,92566.0,92565.0,0.05098]
[1765536614383,0.00630277,92566.0,92565.0,0.05098]
[1765536615212,0.0046899,92566.0,92565.0,0.26704438]
[1765536615422,0.0046899,92566.0,92565.0,0.60087236]
[1765536616049,0.0026899,92566.0,92565.0,0.63330477]
[1765536616221,0.0006899,92566.0,92565.0,0.63330477]
[1765536616654,0.0006899,92566.0,92565.0,0.63430477]
[1765536623247,0.0006899,92566.0,92565.0,0.68432316]
[1765536624236,0.0006899,92566.0,92565.0,0.68332316]
[1765536624853,0.0006899,92566.0,92565.0,0.68532316]
[1765536625503,0.0016899,92566.0,92565.0,0.68932316]
[1765536632403,0.0016899,92566.0,92565.0,1.68932316]
[1765536635932,0.0004,92600.0,92574.0,1.59988975]
[1765536636134,0.0004,92600.0,92574.0,1.66777739]
[1765536636339,0.0004,92600.0,92574.0,1.69045739]
[1765536636547,0.0004,92600.0,92574.0,1.78721901]
[1765536636752,0.0004,92600.0,92574.0,1.69477984]
[1765536638015,1e-08,92575.0,92574.0,1.69777984]
[1765536638430,1e-08,92575.0,92574.0,1.69477984]
[1765536638634,1e-08,92575.0,92574.0,1.69877984]
[1765536638847,1e-08,92575.0,92574.0,1.72006087]
[1765536638848,0.00100001,92575.0,92574.0,1.72006087]
[1765536640215,1e-08,92575.0,92574.0,1.72006087]
[1765536641579,0.00025866,92575.0,92574.0,1.72006087]
[1765536644584,0.00025866,92575.0,92574.0,1.70302087]
[1765536644780,0.00025866,92575.0,92574.0,1.72006087]
[1765536645185,0.00025866,92575.0,92574.0,1.81672867]
[1765536645801,4.769e-05,92575.0,92574.0,1.81672867]
[1765536646067,4.769e-05,92575.0,92574.0,1.70092867]
[1765536646361,4.769e-05,92575.0,92574.0,1.05656087]
[1765536646586,4.769e-05,92575.0,92574.0,0.94006145]
[1765536646791,4.769e-05,92575.0,92574.0,0.92432145]
[1765536646922,4.769e-05,92575.0,92574.0,0.94136145]
[1765536647571,4.769e-05,92575.0,92574.0,0.93636145]
[1765536647771,4.769e-05,92575.0,92574.0,1.64876145]
[1765536648275,4.769e-05,92575.0,92574.0,1.65076145]
[1765536648887,4.769e-05,92575.0,92574.0,0.65076145]
[1765536649186,4.769e-05,92575.0,92574.0,1.65076145]
[1765536650934,4.769e-05,92575.0,92574.0,0.65076145]
[1765536651111,4.769e-05,92575.0,92574.0,1.65076145]
[1765536653059,4.769e-05,92575.0,92574.0,0.60667381]
[1765536653277,4.769e-05,92575.0,92574.0,0.63372145]
[1765536653712,4.769e-05,92575.0,92574.0,0.62972145]
[1765536654088,4.769e-05,92575.0,92574.0,0.63072145]
[1765536654448,4.769e-05,92575.0,92574.0,0.62772145]
[1765536655074,4.769e-05,92575.0,92574.0,0.58459347]
[1765536655274,4.769e-05,92575.0,92574.0,0.62772145]
[1765536655894,4.769e-05,92575.0,92574.0,0.62972145]
[1765536656468,4.769e-05,92575.0,92574.0,0.62772145]
[1765536656677,4.769e-05,92575.0,92574.0,0.62972145]
[1765536657668,4.769e-05,92575.0,92574.0,0.58659347]
[1765536657879,4.769e-05,92575.0,92574.0,0.62972145]
[1765536660405,0.21608873,92575.0,92574.0,0.40935562]
[1765536661037,0.21608873,92575.0,92574.0,0.10664455]
[1765536661239,0.21608873,92575.0,92574.0,0.04848]
[1765536662040,0.2177016,92575.0,92574.0,0.04648]
[1765536662219,0.2177016,92575.0,92574.0,0.08524813]
[1765536662415,0.2187016,92575.0,92574.0,0.08724813]
[1765536662820,0.2187016,92575.0,92574.0,0.08524813]
[1765536663224,0.2187016,92575.0,92574.0,0.04748]
[1765536666957,0.2187016,92575.0,92574.0,0.0248]
[1765536667431,0.2187016,92575.0,92574.0,0.00862]
[1765536667929,0.2187016,92575.0,92574.0,0.001]
[1765536671266,0.44663838,92575.0,92574.0,0.001]
[1765536671491,0.40213439,92575.0,92574.0,0.001]
[1765536672056,0.41221439,92575.0,92574.0,0.001]
[1765536672256,0.21608539,92556.0,92555.0,0.01207]
[1765536672480,0.23312539,92556.0,92555.0,0.01207]
[1765536672890,0.23312539,92556.0,92555.0,0.05154]
[1765536673464,0.23412539,92556.0,92555.0,0.05154]
[1765536674630,0.23612539,92556.0,92555.0,0.05154]
[1765536679825,0.02004,92556.0,92555.0,0.05154]
[1765536680062,0.02004,92556.0,92555.0,0.09466798]
[1765536680331,0.02004,92556.0,92555.0,0.31075571]
[1765536680537,0.003,92556.0,92555.0,0.26762773]
[1765536681552,0.002,92556.0,92555.0,0.05154]
[1765536681775,0.21808539,92556.0,92555.0,0.05154]
[1765536681970,0.21608539,92556.0,92555.0,0.05154]
[1765536682569,0.21608539,92556.0,92555.0,0.02784]
[1765536683167,0.21708539,92556.0,92555.0,0.05085]
[1765536683374,0.21708539,92556.0,92543.0,0.01080578]
[1765536683375,0.21611341,92544.0,92543.0,0.02905153]
[1765536683600,0.21611341,92544.0,92539.0,0.02905153]
[1765536683601,0.21612042,92541.0,92539.0,0.02905153]
[1765536683980,0.21612042,92541.0,92540.0,0.02749]
[1765536684442,0.21612042,92541.0,92540.0,0.0505]
[1765536684580,0.21623688,92541.0,92540.0,0.0505]
[1765536684988,0.21623688,92541.0,92540.0,0.0515]
[1765536685207,0.00011646,92541.0,92540.0,0.0515]
[1765536685925,0.21623688,92541.0,92540.0,0.0515]
[1765536687178,0.00011646,92541.0,92540.0,0.0515]
[1765536688435,0.00011646,92541.0,92540.0,0.08055153]
[1765536689241,0.00011646,92541.0,92540.0,0.26762275]
[1765536690450,0.00011646,92541.0,92540.0,0.0515]
[1765536693123,0.21623688,92541.0,92540.0,0.0515]
[1765536693322,0.00011646,92541.0,92540.0,0.0515]
[1765536693943,0.21623688,92541.0,92540.0,0.0515]
[1765536694652,0.00011646,92541.0,92540.0,0.0515]
[1765536695532,0.00011646,92541.0,92540.0,0.26762275]
[1765536696708,0.00011646,92541.0,92540.0,0.0515]
[1765536696869,0.21623688,92541.0,92540.0,0.0515]
[1765536697287,0.21623688,92541.0,92540.0,0.09026813]
[1765536698338,0.00011646,92541.0,92540.0,0.0515]
[1765536698569,0.21623688,92541.0,92540.0,0.0515]
[1765536698767,0.00011646,92541.0,92540.0,0.26762275]
[1765536699151,0.00011646,92541.0,92540.0,0.3257873]
[1765536699356,0.00011646,92541.0,92540.0,0.60145073]
[1765536713492,0.00011646,92541.0,92540.0,0.6789772]
[1765536721210,0.00011646,92541.0,92540.0,0.60145073]
[1765536723365,0.00011646,92541.0,92540.0,0.67915755]
[1765536723594,0.21623688,92541.0,92540.0,0.3422]
[1765536723817,0.21623688,92541.0,92540.0,0.0515]
[1765536724040,0.21623688,92541.0,92540.0,0.02849]
[1765536724386,0.21623688,92541.0,92540.0,0.05131]
[1765536729868,0.00011646,92541.0,92540.0,0.05131]
[1765536731206,0.21623688,92541.0,92540.0,0.05131]
[1765536735418,0.00011646,92541.0,92540.0,0.05131]
[1765536735966,0.21623688,92541.0,92540.0,0.05131]
[1765536738200,0.00011646,92541.0,92540.0,0.05131]
[1765536739602,0.21623688,92541.0,92540.0,0.05131]
[1765536740244,0.00011646,92541.0,92540.0,0.05131]
[1765536740444,0.21623688,92541.0,92540.0,0.05131]
[1765536740598,0.00011646,92541.0,92540.0,0.05131]
[1765536741541,0.21623688,92541.0,92540.0,0.05131]
[1765536743320,0.00011646,92541.0,92540.0,0.05131]
[1765536743524,0.21623688,92541.0,92540.0,0.05131]
[1765536743744,0.00011646,92541.0,92540.0,0.05131]
[1765536743924,0.21623688,92541.0,92540.0,0.05131]
[1765536744125,0.00011646,92541.0,92540.0,0.05131]
[1765536744337,0.21623688,92541.0,92540.0,0.05131]
[1765536744985,0.00011646,92541.0,92540.0,0.26743275]
[1765536745108,0.00011646,92541.0,92540.0,0.05131]
[1765536745429,0.21623688,92541.0,92540.0,0.05131]
[1765536748164,0.21623688,92541.0,92540.0,0.10959603]
[1765536748917,0.21623688,92541.0,92540.0,0.08677603]
[1765536749074,0.21623688,92541.0,92540.0,0.10929603]
[1765536751165,0.21623688,92541.0,92540.0,0.05101]
[1765536751780,0.21623688,92541.0,92540.0,0.01307]
[1765536752235,0.00011646,92541.0,92540.0,0.05117]
[1765536752833,0.00011646,92541.0,92540.0,0.28890502]
[1765536753154,0.00011646,92541.0,92540.0,0.31042073]
[1765536764512,0.00011646,92541.0,92540.0,0.60112073]
[1765536765580,0.00011646,92541.0,92540.0,0.62796406]
[1765536765818,0.00011646,92541.0,92540.0,0.62996406]
[1765536774606,0.00011646,92541.0,92540.0,1.62996406]
[1765536775010,0.22685276,92572.0,92569.0,0.01080275]
[1765536775235,0.22696918,92572.0,92571.0,0.01879]
[1765536775611,0.22696918,92572.0,92571.0,0.04155]
[1765536776009,0.00011642,92572.0,92571.0,0.28464802]
[1765536776630,0.00311642,92572.0,92571.0,0.28464802]
[1765536777500,0.00611642,92572.0,92571.0,0.28464802]
[1765536780445,0.00611642,92572.0,92571.0,0.32347696]
[1765536780778,0.00611642,92572.0,92571.0,0.33427877]
[1765536781008,0.00611642,92572.0,92571.0,0.29544983]
[1765536782090,0.00611642,92572.0,92571.0,0.33427877]
[1765536782308,0.00611642,92572.0,92571.0,0.62927781]
[1765536782887,0.00311642,92572.0,92571.0,0.62927781]
[1765536783041,0.00011642,92572.0,92571.0,0.62927781]
[1765536783208,0.00111642,92572.0,92571.0,0.62927781]
[1765536783416,0.00111642,92572.0,92571.0,0.58614983]
[1765536783620,0.00011642,92572.0,92571.0,0.70682947]
[1765536783859,0.00011642,92572.0,92571.0,0.62927781]
[1765536784160,0.00011642,92572.0,92571.0,0.63127781]
[1765536784962,0.00011642,92572.0,92571.0,0.63327781]
[1765536785338,0.00011642,92572.0,92571.0,0.63127781]
[1765536785735,0.00011642,92572.0,92571.0,0.63427781]
[1765536785903,0.00011642,92572.0,92571.0,0.63227781]
[1765536786105,0.00011642,92572.0,92571.0,0.63327781]
[1765536786347,0.00011642,92572.0,92571.0,0.63027781]
[1765536787134,0.00011642,92572.0,92571.0,0.63227781]
[1765536793492,0.00011642,92572.0,92571.0,1.63227781]
[1765536793909,0.00011642,92572.0,92571.0,0.95897781]
[1765536795831,0.00011642,92572.0,92571.0,0.63227781]
[1765536796081,0.00011642,92572.0,92571.0,1.63227781]
[1765536796247,0.00011642,92572.0,92571.0,0.93527781]
[1765536796439,0.00011642,92572.0,92571.0,0.63227781]
[1765536797452,0.00011642,92572.0,92571.0,0.64931781]
[1765536801668,0.00011642,92572.0,92571.0,0.58914983]
[1765536801848,0.00011642,92572.0,92571.0,0.64724939]
[1765536802025,0.00011642,92572.0,92571.0,0.58914983]
[1765536802339,0.00011642,92572.0,92571.0,0.63227781]
[1765536802927,0.00011642,92572.0,92571.0,0.63127781]
[1765536803393,0.00011642,92572.0,92571.0,0.62927781]
[1765536804961,0.00011642,92572.0,92571.0,0.63027781]
[1765536813852,0.21616446,92572.0,92571.0,0.37109945]
[1765536814982,0.00011642,92572.0,92571.0,0.37009945]
[1765536815111,0.21777733,92572.0,92571.0,0.34305181]
[1765536815325,0.21777733,92572.0,92571.0,0.34405181]
[1765536815554,0.00172929,92572.0,92571.0,0.56010219]
[1765536816053,0.00172929,92572.0,92571.0,0.58714983]
[1765536816461,0.00011642,92572.0,92571.0,0.63027781]
[1765536820075,0.00011642,92572.0,92571.0,0.58714983]
[1765536820204,0.00011642,92572.0,92571.0,0.64731781]
[1765536820592,0.00011642,92572.0,92571.0,0.58714983]
[1765536820817,0.00011642,92572.0,92571.0,0.63027781]
[1765536826073,0.00011642,92572.0,92571.0,0.58714983]
[1765536829063,0.00011642,92572.0,92571.0,0.37109945]
[1765536829680,0.00011642,92572.0,92571.0,0.08039945]
[1765536830493,0.21616446,92572.0,92571.0,0.08039945]
[1765536830645,0.00011642,92572.0,92571.0,0.08039945]
[1765536832428,0.21616446,92572.0,92571.0,0.08039945]
[1765536833213,0.00011642,92572.0,92571.0,0.08039945]
[1765536833409,0.21616446,92572.0,92571.0,0.08039945]
[1765536836737,0.00011642,92572.0,92571.0,0.08039945]
[1765536837338,0.21616446,92572.0,92571.0,0.08039945]
[1765536839229,0.21777733,92572.0,92571.0,0.01180181]
[1765536839545,0.21777733,92572.0,92571.0,0.05928436]
[1765536840388,0.27374733,92572.0,92571.0,0.001]
[1765536840934,0.01876929,92572.0,92571.0,0.04038]
[1765536841127,0.01080158,92579.0,92571.0,0.04038]
[1765536841128,0.00024884,92582.0,92581.0,0.25915502]
[1765536841354,0.00035362,92582.0,92581.0,0.23201704]
[1765536841538,0.00035362,92582.0,92581.0,0.29853502]
[1765536841888,0.00035362,92582.0,92581.0,0.38701621]
[1765536843053,0.00035362,92582.0,92581.0,0.67771621]
[1765536843255,0.00035362,92582.0,92581.0,0.67871621]
[1765536843452,0.00035362,92582.0,92581.0,0.60103497]
[1765536846245,0.00035362,92582.0,92581.0,0.55790699]
[1765536846451,0.00035362,92582.0,92581.0,0.60103497]
[1765536848369,0.00035362,92582.0,92581.0,0.55790699]
[1765536848693,0.00035362,92582.0,92581.0,0.60103497]
[1765536855159,0.00035362,92582.0,92581.0,0.61236497]
[1765536877970,0.00035362,92582.0,92581.0,0.56923699]
[1765536878402,0.00035362,92582.0,92581.0,0.54584699]
[1765536878629,0.00035362,92582.0,92581.0,0.57041699]
[1765536881666,0.00035362,92582.0,92581.0,0.61354497]
[1765536882098,0.00035362,92582.0,92581.0,0.6913296]
[1765536887547,0.00035362,92582.0,92581.0,0.39751793]
[1765536887702,0.21637833,92582.0,92581.0,0.001]
[1765536887904,0.21637833,92582.0,92581.0,0.05931033]
[1765536888509,0.21637833,92582.0,92581.0,0.001]
[1765536888510,0.2568112,92582.0,92581.0,0.001]
[1765536888709,0.21603171,92579.0,92578.0,0.05831033]
[1765536889444,0.21603404,92578.0,92577.0,0.05831033]
[1765536889609,0.21603356,92579.0,92577.0,0.05831033]
[1765536890196,0.21603356,92579.0,92577.0,0.08288033]
[1765536890436,0.21603185,92579.0,92577.0,0.08288033]
[1765536890634,0.21603185,92579.0,92577.0,0.05831033]
[1765536890811,0.21603191,92579.0,92577.0,0.27434573]
[1765536890991,0.21603404,92578.0,92577.0,0.05831033]
[1765536891192,0.21603191,92579.0,92577.0,0.05831033]
[1765536891407,0.21603404,92578.0,92576.0,0.05831033]
[1765536891606,0.21603638,92577.0,92576.0,0.05831033]
[1765536892426,0.21603404,92578.0,92576.0,0.31414861]
[1765536892626,0.21603404,92578.0,92577.0,0.01523]
[1765536893040,0.01080158,92579.0,92577.0,0.01523]
[1765536893241,0.21603404,92578.0,92577.0,0.01523]
[1765536894545,0.01080146,92580.0,92577.0,0.01523]
[1765536894759,0.22683311,92580.0,92577.0,0.26663623]
[1765536895161,0.01080146,92580.0,92577.0,0.26663623]
[1765536895479,0.01080146,92580.0,92577.0,0.0398]
[1765536895653,0.21603356,92579.0,92577.0,0.0398]
[1765536897224,0.21603404,92578.0,92577.0,0.0398]
[1765536897623,0.01080135,92581.0,92577.0,0.05060181]
[1765536897770,0.01080146,92580.0,92577.0,0.01523]
[1765536897982,0.01080146,92580.0,92577.0,0.24206648]
[1765536898181,0.22683209,92580.0,92577.0,0.24206648]
[1765536898415,0.21603195,92579.0,92577.0,0.24206648]
[1765536898824,0.22683209,92580.0,92577.0,0.24206648]
[1765536899005,0.22682857,92581.0,92578.0,0.22683569]
[1765536899384,0.21603023,92580.0,92578.0,0.21603362]
[1765536899967,0.21603404,92578.0,92577.0,0.02457]
[1765536900123,0.01080146,92580.0,92577.0,0.25140631]
[1765536900297,0.22682857,92581.0,92577.0,0.25140631]
[1765536900496,0.22682857,92581.0,92578.0,0.21603375]
[1765536900726,0.01080135,92581.0,92578.0,0.22683545]
[1765536901124,0.22683055,92581.0,92578.0,0.22683364]
[1765536901533,0.2160299,92580.0,92577.0,0.03537181]
[1765536901694,0.22683055,92581.0,92578.0,0.0228]
[1765536901695,0.01080135,92581.0,92578.0,0.0228]
[1765536902138,0.22683329,92579.0,92576.0,0.07002033]
[1765536902409,0.21603638,92577.0,92576.0,0.07002033]
[1765536904078,0.2160362,92578.0,92576.0,0.07002033]
[1765536905540,0.21603638,92577.0,92576.0,0.07002033]
[1765536905755,0.22683499,92579.0,92576.0,0.09282033]
[1765536905991,0.21603229,92579.0,92576.0,0.09282033]
[1765536906197,0.01080146,92580.0,92577.0,0.0228]
[1765536906407,0.21603404,92578.0,92577.0,0.08111033]
[1765536906836,0.23105404,92578.0,92577.0,0.05831033]
[1765536907032,0.23105404,92578.0,92567.0,0.01173]
[1765536907033,0.21605738,92568.0,92567.0,0.05831033]
[1765536907232,0.21605971,92567.0,92564.0,0.05831033]
[1765536907436,0.21606438,92565.0,92563.0,0.02704764]
[1765536907553,0.21606672,92564.0,92563.0,0.04984764]
[1765536908223,0.21606672,92564.0,92563.0,0.06490764]
[1765536908885,0.21606672,92564.0,92563.0,0.06690764]
[1765536909114,0.21606672,92564.0,92563.0,0.12513568]
[1765536909369,0.21606672,92564.0,92563.0,0.06690764]
[1765536909554,0.01080286,92568.0,92563.0,0.06690764]
[1765536909758,0.2160504,92571.0,92568.0,0.21605554]
[1765536909984,0.2160504,92571.0,92570.0,0.01208]
[1765536910206,0.2160504,92571.0,92570.0,0.02714]
[1765536910409,0.2160504,92571.0,92570.0,0.04994]
[1765536914975,0.2160504,92571.0,92570.0,0.02714]
[1765536915326,0.2160504,92571.0,92570.0,0.01208]
[1765536917824,0.2160504,92571.0,92570.0,0.03564]
[1765536918944,0.2160504,92571.0,92570.0,0.01208]
[1765536922958,0.2160504,92571.0,92570.0,0.03564]
[1765536923159,0.2160504,92571.0,92570.0,0.05117]
[1765536923367,0.02784228,92573.0,92570.0,0.06197263]
[1765536923567,0.24388967,92573.0,92570.0,0.06197263]
[1765536923742,0.24388967,92573.0,92571.0,0.02356]
[1765536924332,0.21604919,92572.0,92571.0,0.02356]
[1765536925552,0.21604919,92572.0,92570.0,0.0703081]
[1765536925873,0.21605038,92571.0,92570.0,0.0703081]
[1765536926577,0.24388864,92573.0,92570.0,0.0703081]
[1765536926795,0.24388864,92573.0,92570.0,0.08111073]
[1765536926796,0.01704,92573.0,92570.0,0.08111073]
[1765536926963,0.02784228,92573.0,92570.0,0.0703081]
[1765536927138,0.21605038,92571.0,92570.0,0.0703081]
[1765536927339,0.02784228,92573.0,92570.0,0.0703081]
[1765536927576,0.21604983,92572.0,92570.0,0.0703081]
[1765536927805,0.24388967,92573.0,92570.0,0.28635902]
[1765536927950,0.21605003,92572.0,92570.0,0.0703081]
[1765536928362,0.23308626,92573.0,92570.0,0.10467073]
[1765536928568,0.23308626,92573.0,92571.0,0.02356]
[1765536928974,0.0108017,92578.0,92573.0,0.01080228]
[1765536929174,0.0108017,92578.0,92576.0,0.09353819]
[1765536929175,0.21603719,92577.0,92576.0,0.09353819]
[1765536929384,0.243879,92577.0,92576.0,0.09353819]
[1765536930135,0.243879,92577.0,92576.0,0.05041021]
[1765536930901,0.244879,92577.0,92576.0,0.05041021]
[1765536931473,0.245879,92577.0,92576.0,0.05041021]